[Event "US Open 2021"]
[Site "Crowne Plaza Cherry Hill, United States"]
[Date "2021.08.03"]
[Round "1.8"]
[White "Benjamin, Joel"]
[Black "Wang, Lilian"]
[Result "1-0"]
[TimeControl "40/100;SD/30;+30"]
[WhiteTitle "GM"]
[WhiteElo "2586"]
[BlackElo "1815"]

1. d4 {[%clk 01:40:58]} {[%emt 00:00:39]} d5 {[%clk 01:40:49]} 2. c4 {[%clk
01:41:17]} e6 {[%clk 01:41:14]} 3. Nc3 {[%clk 01:41:31]} {[%emt 00:00:27]} c5
{[%clk 01:41:36]} 4. cxd5 {[%clk 01:41:38]} {[%emt 00:00:16]} exd5 {[%clk
01:41:58]} {[%emt 00:00:21]} 5. Nf3 {[%clk 01:41:46]} {[%emt 00:00:54]} Nc6
{[%clk 01:42:05]} 6. g3 {[%clk 01:41:10]} {[%emt 00:01:39]} c4 {[%clk
01:41:35]} {[%emt 00:00:10]} 7. Bg2 {[%clk 01:33:20]} {[%emt 00:08:10]} Bb4
{[%clk 01:40:25]} {[%emt 00:02:24]} 8. O-O {[%clk 01:30:57]} {[%emt 00:02:08]}
Nge7 {[%clk 01:37:08]} {[%emt 00:04:21]} 9. Bf4 {[%clk 01:29:32]} {[%emt
00:01:45]} Bxc3 {[%clk 01:35:00]} {[%emt 00:02:35]} 10. bxc3 {[%clk 01:29:11]}
{[%emt 00:00:56]} O-O {[%clk 01:33:27]} {[%emt 00:02:01]} 11. Rb1 {[%clk
01:18:17]} {[%emt 00:11:17]} a6 {[%clk 01:26:17]} {[%emt 00:07:24]} 12. a4
{[%clk 00:57:50]} {[%emt 00:20:57]} Qa5 {[%clk 01:17:45]} {[%emt 00:09:00]} 13.
Qd2 {[%clk 00:57:42]} {[%emt 00:00:51]} b5 {[%clk 01:07:42]} {[%emt 00:10:27]}
14. Bd6 {[%clk 00:56:54]} {[%emt 00:01:11]} Be6 {[%clk 00:59:25]} {[%emt
00:08:52]} 15. Ne5 {[%clk 00:51:02]} {[%emt 00:06:39]} Rfd8 {[%clk 00:55:58]}
{[%emt 00:04:05]} 16. Bc5 {[%clk 00:50:25]} {[%emt 00:00:36]} f6 {[%clk
00:53:34]} {[%emt 00:03:05]} 17. Nxc6 {[%clk 00:49:44]} {[%emt 00:01:13]} Nxc6
{[%clk 00:53:45]} {[%emt 00:00:38]} 18. e4 {[%clk 00:49:39]} {[%emt 00:00:39]}
Rab8 {[%clk 00:49:26]} {[%emt 00:04:43]} 19. exd5 {[%clk 00:42:58]} {[%emt
00:06:50]} Bxd5 {[%clk 00:45:42]} {[%emt 00:04:05]} 20. Bxd5+ {[%clk 00:43:20]}
{[%emt 00:00:43]} Rxd5 {[%clk 00:45:52]} 21. Qe3 {[%clk 00:43:44]} Rxc5 {[%clk
00:35:48]} {[%emt 00:10:27]} 22. dxc5 {[%clk 00:41:19]} {[%emt 00:02:56]} Ne5
{[%clk 00:35:06]} {[%emt 00:01:15]} 23. f4 {[%clk 00:41:06]} {[%emt 00:00:46]}
Nd3 {[%clk 00:34:39]} {[%emt 00:00:50]} 24. Qe6+ {[%clk 00:40:46]} {[%emt
00:00:51]} Kh8 {[%clk 00:34:27]} {[%emt 00:00:43]} 25. Qxc4 {[%clk 00:40:53]}
{[%emt 00:00:22]} Rd8 {[%clk 00:32:30]} {[%emt 00:02:49]} 26. axb5 {[%clk
00:41:07]} axb5 {[%clk 00:32:31]} {[%emt 00:00:27]} 27. Rxb5 {[%clk 00:41:27]}
{[%emt 00:00:35]} Qc7 {[%clk 00:30:37]} {[%emt 00:01:54]} 28. Rd1 {[%clk
00:40:38]} {[%emt 00:01:22]} 1-0

[Event "US Open 2021"]
[Site "Crowne Plaza Cherry Hill, United States"]
[Date "2021.08.03"]
[Round "1.9"]
[White "Krishna, Rohan"]
[Black "Matviishen, Viktor"]
[Result "0-1"]
[TimeControl "40/100;SD/30;+30"]
[BlackTitle "IM"]
[WhiteElo "1800"]
[BlackElo "2575"]

1. e4 {[%clk 01:40:53]} e5 {[%clk 01:40:50]} 2. Nf3 {[%clk 01:41:08]} Nc6
{[%clk 01:41:15]} 3. d4 {[%clk 01:41:10]} {[%emt 00:00:20]} exd4 {[%clk
01:41:40]} {[%emt 00:00:10]} 4. Bc4 {[%clk 01:41:11]} {[%emt 00:00:58]} Nf6
{[%clk 01:42:03]} 5. e5 {[%clk 01:41:32]} d5 {[%clk 01:42:28]} 6. Bb5 {[%clk
01:41:52]} Ne4 {[%clk 01:42:53]} {[%emt 00:00:21]} 7. Nxd4 {[%clk 01:42:03]}
{[%emt 00:00:07]} Bd7 {[%clk 01:43:18]} {[%emt 00:00:12]} 8. Bxc6 {[%clk
01:42:16]} {[%emt 00:00:04]} bxc6 {[%clk 01:43:44]} {[%emt 00:00:24]} 9. O-O
{[%clk 01:42:23]} {[%emt 00:00:27]} Bc5 {[%clk 01:43:51]} 10. f3 {[%clk
01:42:11]} {[%emt 00:00:47]} Ng5 {[%clk 01:44:08]} {[%emt 00:00:20]} 11. f4
{[%clk 01:42:28]} {[%emt 00:00:29]} Ne4 {[%clk 01:44:18]} 12. Be3 {[%clk
01:42:26]} {[%emt 00:01:03]} Bb6 {[%clk 01:44:24]} {[%emt 00:00:03]} 13. Nd2
{[%clk 01:40:27]} {[%emt 00:03:05]} Nxd2 {[%clk 01:43:54]} {[%emt 00:00:03]} 14.
Qxd2 {[%clk 01:40:47]} {[%emt 00:00:13]} c5 {[%clk 01:44:22]} {[%emt 00:00:03]}
15. Nf3 {[%clk 01:38:23]} {[%emt 00:03:28]} d4 {[%clk 01:44:38]} 16. Bf2 {[%clk
01:38:35]} {[%emt 00:00:07]} Bc6 {[%clk 01:45:02]} 17. Bh4 {[%clk 01:37:51]}
{[%emt 00:01:08]} Qd7 {[%clk 01:45:17]} {[%emt 00:00:46]} 18. e6 {[%clk
01:31:12]} {[%emt 00:07:01]} fxe6 {[%clk 01:45:33]} 19. Ne5 {[%clk 01:30:44]}
{[%emt 00:01:20]} Qd5 {[%clk 01:45:57]} 20. Nxc6 {[%clk 01:29:23]} {[%emt
00:01:26]} Qxc6 {[%clk 01:46:14]} {[%emt 00:00:31]} 21. f5 {[%clk 01:27:24]}
{[%emt 00:02:23]} Kd7 {[%clk 01:15:40]} {[%emt 00:31:37]} 22. fxe6+ {[%clk
01:25:17]} {[%emt 00:01:51]} Qxe6 {[%clk 01:16:07]} {[%emt 00:00:35]} 23. Rae1
{[%clk 01:25:18]} {[%emt 00:00:04]} Qd5 {[%clk 01:09:53]} {[%emt 00:07:10]} 24.
Re7+ {[%clk 01:22:14]} {[%emt 00:03:04]} Kc6 {[%clk 01:10:18]} {[%emt
00:00:08]} 25. Rff7 {[%clk 01:18:50]} {[%emt 00:03:59]} Rae8 {[%clk 01:08:54]}
{[%emt 00:01:41]} 26. Rxg7 {[%clk 01:15:55]} {[%emt 00:03:27]} Qxa2 {[%clk
01:07:42]} {[%emt 00:01:47]} 27. g4 {[%clk 01:09:52]} {[%emt 00:06:27]} Rxe7
{[%clk 00:55:49]} {[%emt 00:12:46]} 28. Rxe7 {[%clk 01:09:28]} {[%emt
00:00:33]} Qxb2 {[%clk 00:56:14]} {[%emt 00:00:13]} 29. Qg2+ {[%clk 01:09:17]}
{[%emt 00:01:00]} Kb5 {[%clk 00:56:15]} {[%emt 00:00:20]} 30. c4+ {[%clk
01:09:37]} dxc3 {[%clk 00:56:37]} 31. Re2 {[%clk 01:09:06]} {[%emt 00:01:00]}
c2 {[%clk 00:53:31]} {[%emt 00:03:49]} 32. Rxc2 {[%clk 01:04:54]} {[%emt
00:04:40]} c4+ {[%clk 00:52:45]} {[%emt 00:01:09]} 33. Kf1 {[%clk 01:01:06]}
{[%emt 00:04:22]} Qb1+ {[%clk 00:53:03]} {[%emt 00:00:46]} 34. Be1 {[%clk
01:01:04]} Rf8+ {[%emt 00:01:14]} 0-1

[Event "US Open 2021"]
[Site "Crowne Plaza Cherry Hill, United States"]
[Date "2021.08.03"]
[Round "1.10"]
[White "Molner, Mackenzie S"]
[Black "Thau, Peter"]
[Result "1-0"]
[TimeControl "40/100;SD/30;+30"]
[WhiteTitle "GM"]
[WhiteElo "2517"]
[BlackElo "1800"]

1. e4 {[%clk 01:40:56]} e6 {[%clk 01:40:49]} {[%emt 00:00:07]} 2. f4 {[%clk
01:41:19]} {[%emt 00:00:42]} Nf6 {[%clk 01:40:58]} 3. e5 {[%clk 01:40:55]}
{[%emt 00:00:37]} Nd5 {[%clk 01:41:20]} {[%emt 00:00:35]} 4. d4 {[%clk
01:40:52]} {[%emt 00:00:06]} c5 {[%clk 01:39:55]} {[%emt 00:02:52]} 5. c4
{[%clk 01:40:15]} {[%emt 00:00:22]} Nc7 {[%clk 01:38:31]} {[%emt 00:02:10]} 6.
d5 {[%clk 01:36:36]} {[%emt 00:03:43]} d6 {[%clk 01:29:26]} {[%emt 00:09:33]} 7.
Nc3 {[%clk 01:36:41]} {[%emt 00:00:34]} f5 {[%clk 01:12:42]} {[%emt 00:17:38]}
8. Nf3 {[%clk 01:35:08]} {[%emt 00:01:30]} Be7 {[%clk 01:11:38]} {[%emt
00:01:44]} 9. Be3 {[%clk 01:29:29]} {[%emt 00:06:02]} Nba6 {[%clk 01:03:47]}
{[%emt 00:08:34]} 10. Qd2 {[%clk 01:26:23]} {[%emt 00:03:21]} O-O {[%clk
01:01:37]} {[%emt 00:02:45]} 11. O-O-O {[%clk 01:26:02]} {[%emt 00:00:49]} Ne8
{[%clk 00:55:55]} {[%emt 00:06:23]} 12. g3 {[%clk 01:21:49]} {[%emt 00:04:48]}
g6 {[%emt 00:08:19]} 13. Bg2 {[%clk 01:21:33]} {[%emt 00:00:26]} Rb8 {[%clk
00:47:14]} {[%emt 00:01:22]} 14. h4 {[%clk 01:20:50]} {[%emt 00:01:14]} Ng7
{[%clk 00:45:58]} {[%emt 00:01:47]} 15. exd6 {[%clk 01:04:39]} {[%emt
00:16:37]} Qxd6 {[%clk 00:29:56]} {[%emt 00:17:19]} 16. Ne5 {[%clk 01:04:38]}
Rd8 {[%clk 00:20:34]} {[%emt 00:09:37]} 17. Bf3 {[%clk 01:03:45]} {[%emt
00:01:26]} Kf8 {[%clk 00:10:37]} {[%emt 00:10:44]} 18. h5 {[%clk 01:03:29]}
{[%emt 00:00:32]} Nxh5 {[%clk 00:07:48]} {[%emt 00:03:27]} 19. Bxh5 {[%clk
01:03:43]} {[%emt 00:00:05]} gxh5 {[%clk 00:08:12]} {[%emt 00:00:24]} 20. Rxh5
{[%clk 01:03:35]} {[%emt 00:00:19]} Kg7 {[%clk 00:05:15]} {[%emt 00:03:26]} 21.
Rdh1 {[%clk 01:02:18]} {[%emt 00:01:45]} Rh8 {[%clk 00:05:13]} {[%emt
00:01:05]} 22. Qh2 {[%clk 01:02:36]} 1-0